bitfinex/quotes_ETHUSD_20240722
["timestamp","ask_amount","ask_price","bid_price","bid_amount"]
[1721630627690,2.41321709,3474.2,3473.2,3.167043]
[1721630627997,2.41321709,3474.2,3473.4,2.87896]
[1721630627998,0.55,3474.2,3473.4,2.87896]
[1721630628299,0.55,3474.2,3473.2,3.167103]
[1721630628300,0.55,3474.2,3473.5,0.6046063]
[1721630628455,3.46646825,3474.4,3473.5,0.6046063]
[1721630628456,1.13827825,3474.3,3473.5,0.6046063]
[1721630628651,0.85485668,3474.2,3473.5,3.4835363]
[1721630628993,0.58827825,3474.4,3473.5,3.4835363]
[1721630629178,0.58827825,3474.4,3473.5,2.87893]
[1721630629488,0.58827825,3474.4,3472.9,0.05756789]
[1721630629489,1.86376943,3474.3,3472.9,0.05756789]
[1721630629654,0.58827825,3474.4,3472.9,0.05756789]
[1721630629852,0.58827825,3474.4,3473.7,2.87869]
[1721630630053,0.58827825,3474.4,3473.8,2.87868]
[1721630631147,2.45238491,3474.4,3473.8,2.87868]
[1721630631351,1.86410666,3474.3,3473.8,2.87868]
[1721630631595,1.86410666,3474.3,3473.1,2.9367738]
[1721630631596,0.85501711,3474.2,3473.7,2.87876]
[1721630631791,0.58827825,3474.3,3474.0,2.87845]
[1721630631947,0.58827825,3474.4,3474.0,2.87845]
[1721630632151,2.45329245,3474.4,3474.0,2.87845]
[1721630632376,0.58827825,3474.4,3474.0,2.87845]
[1721630632789,0.58827825,3474.4,3473.6,2.87884]
[1721630632963,0.58827825,3474.4,3473.0,2.8793]
[1721630632964,2.87853,3474.0,3473.0,2.8793]
[1721630633167,0.58827825,3473.8,3473.0,2.8793]
[1721630633351,0.58827825,3473.6,3472.6,2.87967]
[1721630633687,5.62644099,3473.8,3472.7,2.87958]
[1721630633688,2.45359769,3473.5,3472.7,2.87958]
[1721630633992,2.45359769,3473.5,3473.0,2.87935]
[1721630633993,0.85565087,3473.4,3473.0,2.87935]
[1721630634189,0.58827825,3473.5,3472.8,2.87951]
[1721630634390,0.58827825,3473.5,3472.9,2.87943]
[1721630634599,0.58827825,3473.5,3472.8,0.575918]
[1721630634801,0.85548886,3473.4,3473.0,2.87935]
[1721630634967,0.58827825,3473.6,3473.0,2.87935]
[1721630635285,0.58827825,3473.7,3473.1,2.87921]
[1721630635499,0.58827825,3473.9,3473.3,2.87904]
[1721630635696,0.58827825,3473.9,3473.1,2.87921]
[1721630635912,3.46691825,3473.9,3472.9,2.87942]
[1721630636196,0.58827825,3473.7,3472.9,2.87942]
[1721630636366,2.4537753,3473.7,3472.4,0.05757827]
[1721630636570,0.85564736,3473.6,3473.2,2.87918]
[1721630636784,0.58827825,3473.7,3473.2,2.87918]
[1721630637666,0.58827825,3473.7,3473.4,2.87901]
[1721630637886,0.58827825,3473.9,3473.4,2.87897]
[1721630638083,3.60637034,3474.2,3473.6,2.87877]
[1721630638084,0.58827825,3474.0,3473.6,2.87877]
[1721630638395,3.29991738,3474.2,3473.6,2.87877]
[1721630638396,0.58827825,3474.1,3473.6,2.87884]
[1721630638568,0.85608488,3474.0,3473.8,2.87868]
[1721630638775,0.58827825,3474.2,3473.6,2.87884]
[1721630638990,2.45483611,3474.1,3473.4,2.879]
[1721630639297,2.45483611,3474.1,3473.2,3.455023]
[1721630639298,2.45483611,3474.0,3473.5,2.87893]
[1721630639498,0.85613999,3473.9,3473.5,2.87893]
[1721630639700,0.58827825,3474.1,3473.6,2.87885]
[1721630639856,2.45513372,3474.1,3473.8,2.87868]
[1721630640056,0.58827825,3474.2,3473.8,2.87868]
[1721630640257,0.58827825,3474.2,3473.9,2.8786]
[1721630640489,0.85646828,3474.1,3473.9,2.8786]
[1721630640711,0.58827825,3474.3,3474.0,2.87845]
[1721630640854,0.58827825,3474.3,3474.1,2.87844]
[1721630641058,2.45590117,3474.3,3474.1,2.87844]
[1721630641297,1.86762292,3474.2,3474.1,2.87844]
[1721630641513,2.45590117,3474.3,3474.1,2.87844]
[1721630641716,1.86775528,3474.2,3474.1,2.87844]
[1721630641867,0.58827825,3474.5,3474.4,2.87819]
[1721630642067,1.18887034,3474.9,3474.4,2.87819]
[1721630642068,2.45632009,3474.6,3474.4,2.87819]
[1721630642380,0.58827825,3474.7,3474.2,2.87834]
[1721630642697,0.88241738,3474.9,3474.1,0.575704]
[1721630642698,2.45631971,3474.6,3474.1,0.575704]
[1721630642867,2.45631971,3474.6,3474.2,2.87835]
[1721630642868,0.85683411,3474.5,3474.2,2.87835]
[1721630643068,0.58827825,3474.7,3474.2,2.87835]
[1721630643268,2.45624752,3474.7,3474.2,2.87835]
[1721630643493,1.86796927,3474.6,3474.2,0.6332564]
[1721630643766,0.85665745,3474.5,3473.4,0.6334023]
[1721630643991,0.58827825,3474.7,3473.4,0.6334023]
[1721630643992,0.58827825,3474.7,3474.3,2.87822]
[1721630644202,2.45598571,3474.7,3474.4,2.87818]
[1721630644412,0.85667978,3474.6,3474.4,2.87818]
[1721630644572,0.58827825,3474.7,3474.4,2.87818]
[1721630645005,0.58827825,3474.7,3474.2,2.87834]
[1721630646085,0.58827825,3474.7,3474.1,2.87843]
[1721630646378,0.58827825,3474.8,3474.5,2.8781]
[1721630647009,0.58827825,3474.9,3474.5,2.8781]
[1721630647315,2.4552733,3474.9,3474.5,2.8781]
[1721630647472,0.85635525,3474.8,3474.5,2.8781]
[1721630647673,0.58827825,3474.9,3474.5,2.8781]
[1721630648608,2.45509622,3474.9,3474.1,2.87844]
[1721630648811,1.86681797,3474.8,3474.2,0.29359958]
[1721630649024,0.58827825,3474.9,3474.4,2.87816]
[1721630649841,0.58827825,3474.9,3474.1,2.87838]
[1721630650166,0.58827825,3474.8,3474.1,2.87842]
[1721630650332,0.58827825,3474.8,3474.2,2.87835]
[1721630650702,0.58827825,3474.8,3474.0,2.87851]
[1721630650703,0.58827825,3474.8,3474.3,2.87825]
[1721630651424,0.58827825,3474.8,3474.4,2.87817]
[1721630651841,0.58827825,3474.9,3474.4,2.87817]
[1721630652137,2.45519131,3474.9,3474.4,2.87817]
[1721630652298,2.45519131,3474.9,3474.5,2.87811]
[1721630652650,0.85631633,3474.8,3474.5,2.87811]
[1721630652798,1.86713325,3474.9,3474.5,2.87811]
[1721630652994,1.86713325,3474.9,3474.2,2.87835]
[1721630652995,0.8565126,3474.8,3474.2,2.87835]
[1721630653200,0.8565126,3474.8,3474.1,2.87844]
[1721630653201,1.86729581,3474.7,3474.1,2.87844]
[1721630653399,1.86729581,3474.7,3473.7,3.0]
[1721630653400,0.58827825,3474.8,3474.2,2.8783]
[1721630653998,0.58827825,3474.8,3474.3,2.8782]
[1721630654245,0.58827825,3474.9,3474.4,2.87817]
[1721630654612,2.45554249,3474.8,3473.8,2.87866]
[1721630654945,3.00554249,3474.7,3473.8,2.87868]
[1721630655098,1.86726424,3474.6,3474.2,2.87835]
[1721630655295,1.13827825,3474.7,3474.2,2.87835]
[1721630655514,0.85653493,3474.6,3474.2,2.87835]
[1721630655755,0.99853493,3474.6,3474.2,2.87835]
[1721630655897,0.142,3474.6,3474.2,2.87835]
[1721630656098,0.142,3474.6,3474.2,3.24865892]
[1721630656294,0.142,3474.6,3474.3,2.87824]
[1721630656506,0.142,3474.6,3474.2,0.37030892]
[1721630656744,0.142,3474.6,3474.0,2.8785]
[1721630657122,0.142,3474.6,3474.3,2.87827]
[1721630657321,0.142,3474.6,3474.4,2.87819]
[1721630657525,0.137,3474.6,3473.9,2.8786]
[1721630657725,0.137,3474.6,3474.3,2.87826]
[1721630660177,0.58827825,3474.8,3474.3,2.87826]
[1721630660732,0.58827825,3474.8,3474.1,2.87844]
[1721630660932,0.58827825,3474.8,3474.1,3.454142]
[1721630661134,0.58827825,3474.8,3474.1,2.87844]
[1721630661335,0.58827825,3474.8,3474.3,2.87824]
[1721630662674,0.58827825,3474.8,3474.2,2.87834]
[1721630662876,0.58827825,3474.8,3473.7,3.0]
[1721630662877,2.45563485,3474.8,3474.0,2.8785]
[1721630663029,2.45563485,3474.7,3474.0,3.754209]
[1721630663360,0.85651673,3474.6,3474.0,3.754209]
[1721630663567,0.58827825,3474.7,3474.0,0.875709]
[1721630663866,0.58827825,3474.7,3473.1,9.5866]
[1721630663867,0.58827825,3474.3,3473.1,2.87926]
[1721630664127,3.46674825,3474.1,3473.2,2.87918]
[1721630664420,0.58827825,3473.8,3472.7,2.87958]
[1721630664619,0.58827825,3473.8,3472.9,2.87943]
[1721630664620,0.58827825,3473.7,3472.9,2.87943]
[1721630664769,1.13827825,3473.6,3472.9,2.87943]
[1721630665090,0.85603292,3473.5,3472.9,2.87943]
[1721630665293,5.14704,3473.5,3472.0,2.88015]
[1721630665508,5.14704,3473.5,3472.1,2.8801]
[1721630665509,0.58827825,3473.1,3472.1,2.8801]
[1721630665676,0.58827825,3473.0,3472.2,2.87998]
[1721630665869,0.58827825,3473.0,3471.5,0.05758701]
[1721630666071,0.58827825,3473.0,3471.9,2.88022]
[1721630666315,0.58827825,3473.2,3472.4,2.8798]
[1721630666476,0.58827825,3473.2,3472.5,2.87976]
[1721630666681,0.58827825,3473.2,3472.7,2.87953]
[1721630666682,0.85536427,3473.2,3472.7,2.87953]
[1721630667002,1.13827825,3473.4,3472.7,2.87953]
[1721630667202,2.2681,3473.5,3472.0,2.701122]
[1721630667203,0.58827825,3473.5,3472.0,2.701122]
[1721630667508,0.58827825,3473.7,3473.1,2.87926]
[1721630667978,0.58827825,3473.7,3472.9,2.87938]
[1721630668313,0.58827825,3473.7,3472.1,7.0414782]
[1721630668314,2.4301,3473.6,3472.1,4.1614382]
[1721630668517,0.58827825,3473.2,3472.2,5.88001]
[1721630668815,3.76149738,3473.4,3472.3,2.87988]
[1721630668816,3.46738825,3473.3,3472.3,2.87988]
[1721630668967,2.41459404,3473.2,3472.4,3.57195282]
[1721630669300,0.58827825,3473.4,3472.4,0.69213282]
[1721630669506,0.88241738,3473.5,3472.4,2.87984]
[1721630669507,0.58827825,3473.5,3472.4,2.87984]
[1721630669685,0.55,3473.4,3472.4,2.87984]
[1721630669890,0.85506981,3473.3,3472.4,2.87984]
[1721630670277,3.42904,3473.4,3472.4,2.87984]
[1721630670696,2.87917,3473.3,3472.4,2.87984]
[1721630670893,0.55,3473.4,3472.2,2.88]
[1721630670894,2.87921,3473.2,3472.2,2.88]
[1721630671067,2.87921,3473.2,3472.3,0.9048192]
[1721630671266,2.87921,3473.2,3472.3,3.7847392]
[1721630674112,2.87933,3473.1,3472.3,0.9048192]
[1721630674414,2.87911,3473.3,3472.3,0.9048192]
[1721630674716,2.87933,3473.1,3472.3,0.9048192]
[1721630675287,0.55,3473.2,3472.4,0.37848092]
[1721630675904,3.4292,3473.2,3472.4,0.37848092]
[1721630676110,0.55,3473.2,3472.4,0.37848092]
[1721630676420,0.58827825,3473.5,3472.3,0.9048192]
[1721630676421,2.87935,3473.0,3472.3,0.9048192]
[1721630677721,2.87928,3473.1,3472.3,0.9048192]
[1721630679528,2.87935,3473.0,3472.3,0.9048192]
[1721630679741,2.87958,3472.8,3472.0,3.288022]
[1721630680022,2.87937,3473.0,3472.0,0.288022]
[1721630680213,0.55,3472.9,3472.1,2.8801]
[1721630680409,0.55,3472.9,3472.2,0.6168122]
[1721630682835,0.55,3472.9,3472.2,3.4968122]
[1721630683004,0.55,3473.1,3472.2,3.4968122]
[1721630683200,3.4293,3473.1,3472.2,3.4968122]
[1721630683431,2.87937,3473.0,3472.2,0.6168122]
[1721630683639,0.55,3472.9,3472.2,0.6168122]
[1721630685337,0.55,3472.9,3472.3,0.37848742]
[1721630686003,0.55,3473.0,3472.3,0.37848742]
[1721630686206,0.55,3473.0,3472.3,3.25841742]
[1721630686653,0.55,3473.0,3472.3,0.37848742]
[1721630686865,0.55,3473.0,3472.3,3.25839742]
[1721630687147,0.55,3473.2,3472.5,2.87971]
[1721630687305,0.55,3473.3,3472.4,6.43515096]
[1721630687509,2.8792,3473.2,3472.4,3.55530096]
[1721630687708,2.8792,3473.2,3472.4,0.67553096]
[1721630688820,3.42912,3473.3,3472.4,0.67553096]
[1721630689023,2.87926,3473.2,3472.0,2.88017]
[1721630689234,3.42929,3473.1,3472.1,2.88009]
[1721630689554,2.87936,3473.0,3472.1,2.88009]
[1721630690011,2.87924,3473.2,3472.3,2.87993]
[1721630690355,0.55,3473.1,3472.3,3.45594]
[1721630690511,2.8793,3473.1,3472.3,0.57601]
[1721630690710,2.8793,3473.1,3472.2,2.87995]
[1721630691145,0.55,3473.3,3472.0,2.88018]
[1721630691365,2.87947,3472.9,3472.0,2.88018]
[1721630692061,2.87953,3472.8,3472.0,2.88018]
[1721630692347,2.87953,3472.8,3472.1,0.876051]
[1721630693924,2.87937,3473.0,3472.1,0.876051]
[1721630694140,3.42945,3472.9,3472.1,0.876051]
[1721630694666,2.87955,3472.8,3472.1,0.876051]
[1721630696056,3.42944,3472.9,3472.0,3.0]
[1721630696351,2.87964,3472.7,3472.0,3.0]
[1721630696559,2.87964,3472.7,3471.9,3.0]
[1721630697429,2.87964,3472.7,3471.9,5.88025]
[1721630697827,2.4,3472.6,3470.8,2.4316]
[1721630698057,2.88007,3472.2,3471.3,2.88071]
[1721630698244,2.88007,3472.2,3471.4,2.88067]
[1721630698446,2.88007,3472.2,3471.1,2.88091]
[1721630698770,2.88007,3472.2,3471.3,2.88069]
[1721630700095,0.55,3472.5,3471.5,2.88059]
[1721630700303,0.88241738,3472.9,3472.2,2.87994]
[1721630700450,2.3482,3473.1,3472.0,2.88016]
[1721630700649,2.3482,3473.1,3472.0,0.288016]
[1721630700650,2.87953,3472.8,3472.0,0.288016]
[1721630700853,2.3482,3473.1,3471.3,5.88074]
[1721630701147,2.3482,3473.1,3471.4,2.88061]
[1721630701148,2.87977,3472.5,3471.4,2.88061]
[1721630701622,2.87996,3472.3,3471.4,2.88061]
[1721630701779,2.4549,3472.1,3471.0,2.881]
[1721630701974,2.8804,3471.8,3471.0,1.143693]
[1721630703229,2.88019,3472.0,3471.0,1.143693]
[1721630703431,2.88044,3471.7,3470.9,0.24316]
[1721630703577,2.88061,3471.5,3470.5,2.88142]
[1721630703975,2.88083,3471.3,3470.3,3.17012]
[1721630704291,2.4723,3471.4,3470.3,3.17012]
[1721630704292,2.4723,3471.4,3470.4,0.0576195]
[1721630704488,2.4723,3471.4,3470.7,2.88124]
[1721630704684,2.4723,3471.4,3470.7,3.457499]
[1721630704885,2.4723,3471.4,3470.8,2.88116]
[1721630705097,2.4723,3471.4,3470.3,0.2886]
[1721630705098,3.00637825,3472.0,3471.2,2.8808]
[1721630705358,3.00637825,3472.0,3470.8,2.88116]
[1721630705359,2.4181,3472.0,3470.8,2.88116]
[1721630705484,2.88061,3471.5,3470.4,2.88149]
[1721630705790,3.43069,3471.4,3470.5,0.317009]
[1721630706006,5.32994,3471.3,3470.3,0.2886]
[1721630706218,2.88103,3471.0,3470.3,0.2886]
[1721630706511,2.4491,3471.3,3470.3,0.2886]
[1721630706512,3.03737825,3471.3,3470.3,0.2886]
[1721630706719,2.88133,3470.7,3470.3,0.2886]
[1721630707302,2.88145,3470.5,3469.6,0.2886]
[1721630707506,2.88145,3470.5,3469.8,0.2886]
[1721630707912,0.58827825,3471.1,3469.7,0.317082]
[1721630707913,2.88098,3471.1,3470.3,0.2886]
[1721630708528,5.32987,3471.3,3470.3,3.17018]
[1721630708678,3.43085,3471.2,3470.3,0.2886]
[1721630708877,0.55,3471.2,3470.2,0.2886]
[1721630709103,2.88095,3471.1,3470.2,3.17024]
[1721630709303,2.88102,3471.0,3470.2,0.2886]
[1721630709593,2.4491,3471.3,3470.7,2.88118]
[1721630709796,0.58827825,3471.5,3470.2,0.2886]
[1721630709994,10.35997,3472.3,3470.7,2.88126]
[1721630709995,10.39417825,3472.3,3470.7,2.88126]
[1721630710234,2.88028,3471.9,3470.9,2.88108]
[1721630710439,2.91417825,3472.3,3470.8,3.169286]
[1721630710440,2.88039,3471.8,3470.8,3.169286]
[1721630710604,0.58827825,3472.1,3470.8,0.288126]
[1721630710792,2.3259,3472.3,3471.5,2.88052]
[1721630711238,2.3259,3472.3,3471.6,2.8805]
[1721630711398,2.90529482,3472.3,3470.8,0.288126]
[1721630711799,2.3259,3472.3,3471.7,2.88041]
[1721630712312,2.3259,3472.3,3471.5,2.88059]
[1721630712497,2.3259,3472.3,3471.7,2.88041]
[1721630712692,0.58827825,3472.6,3471.7,2.2941]
[1721630712898,7.12076887,3473.4,3470.8,3.169296]
[1721630712899,0.58827825,3473.2,3471.2,2.4277]
[1721630713204,0.96994031,3473.1,3472.2,2.87994]
[1721630713405,0.39358956,3473.1,3472.2,2.87994]
[1721630714094,0.39358956,3473.1,3472.0,2.88017]
[1721630714307,0.58827825,3473.3,3472.1,0.05759258]
[1721630714495,0.5767923,3473.3,3472.6,2.87961]
[1721630714799,3.05347825,3473.4,3472.4,2.87978]
[1721630715119,3.05347825,3473.4,3471.3,3.54852924]
[1721630715120,2.4806,3472.5,3471.3,3.42927924]
[1721630715329,3.41589,3472.4,3471.4,2.88063]
[1721630715634,2.4806,3472.5,3470.8,3.288126]
[1721630715635,2.87999,3472.3,3471.2,2.88078]
[1721630715795,5.36037,3472.5,3471.3,2.88071]
[1721630715996,2.87996,3472.3,3471.3,2.88071]
[1721630716196,2.87996,3472.3,3471.1,2.88092]
[1721630716197,2.88011,3472.1,3471.1,2.88092]
[1721630716414,2.88018,3472.0,3470.9,2.88108]
[1721630716633,2.88018,3472.0,3470.8,3.169286]
[1721630717043,2.88018,3472.0,3470.9,3.0]
[1721630717257,2.88052,3471.6,3470.8,0.288126]
[1721630717538,5.31742,3471.6,3470.7,2.88124]
[1721630717712,5.31742,3471.6,3470.6,2.88133]
[1721630717896,5.31747,3471.6,3470.3,0.2886]
[1721630718093,2.4369,3471.6,3470.7,2.88119]
[1721630718318,2.4369,3471.6,3470.4,3.15653]
[1721630718319,2.88069,3471.4,3470.4,3.15653]
[1721630718520,2.88077,3471.3,3470.4,0.27506]
[1721630718913,5.31741,3471.6,3470.4,3.15656]
[1721630719139,0.55,3471.5,3470.4,3.15656]
[1721630719443,2.88082,3471.3,3470.4,0.27506]
[1721630719611,2.88082,3471.3,3470.4,3.15657]
[1721630720005,2.88082,3471.3,3470.4,0.27506]
[1721630720205,2.88086,3471.2,3470.4,0.27506]
[1721630720656,2.88068,3471.4,3470.5,2.88141]
[1721630720863,0.55,3471.5,3470.6,2.88133]
[1721630721171,3.43066,3471.5,3470.5,3.225927]
[1721630721369,2.88071,3471.4,3470.5,3.225927]
[1721630722233,2.88085,3471.2,3470.5,0.344507]
[1721630722468,2.88085,3471.2,3470.3,3.17018]
[1721630722665,3.4306,3471.5,3470.6,2.88128]
[1721630722870,2.88068,3471.4,3470.4,2.8815]
[1721630723048,2.88068,3471.4,3470.5,2.88141]
[1721630723249,0.55,3471.5,3470.6,3.198331]
[1721630723552,3.43061,3471.5,3470.6,3.198331]
[1721630723742,3.43061,3471.5,3470.6,0.317001]
[1721630723942,2.88068,3471.4,3470.6,0.317001]
[1721630724731,0.55,3471.5,3470.3,0.2886]
[1721630724945,2.88135,3470.6,3470.3,0.2886]
[1721630725486,2.88135,3470.6,3469.7,2.88208]
[1721630725945,2.88143,3470.5,3469.6,2.88217]
[1721630726152,2.88143,3470.5,3469.6,3.170387]
[1721630726690,5.22539,3470.7,3469.6,3.170387]
[1721630726895,0.55,3470.6,3469.6,3.170387]
[1721630727274,2.3441,3470.7,3469.9,2.88192]
[1721630728198,2.88146,3470.5,3469.5,2.88224]
[1721630728405,2.88189,3470.0,3468.6,0.14212911]
[1721630728612,0.522556,3470.4,3469.2,2.88249]
[1721630728613,0.55,3469.9,3469.2,2.88249]
[1721630728762,2.88182,3470.1,3469.2,2.88249]
[1721630728957,2.88182,3470.1,3468.2,2.40494656]
[1721630728958,0.55,3470.0,3468.9,2.88268]
[1721630729163,0.55,3470.0,3468.5,2.88307]
[1721630729164,0.55,3470.0,3469.2,2.8825]
[1721630729479,0.55,3470.0,3469.3,2.8824]
[1721630729803,0.55,3470.2,3469.3,2.8824]
[1721630730004,0.55,3470.3,3469.3,2.8824]
[1721630730365,2.88179,3470.1,3469.2,2.88249]
[1721630730568,0.90996194,3470.0,3468.3,0.2886]
[1721630731006,0.90996194,3470.0,3469.1,2.88252]
[1721630731509,2.3087,3469.9,3469.1,2.88252]
[1721630731739,2.3087,3469.9,3468.3,0.2886]
[1721630731740,3.43208,3469.8,3468.6,2.88293]
[1721630732020,3.404656,3469.7,3468.8,2.88277]
[1721630732166,0.522556,3469.7,3467.7,9.6167]
[1721630732362,0.522556,3469.7,3468.2,2.88331]
[1721630732363,2.88235,3469.4,3468.2,2.88331]
[1721630732576,0.55,3469.3,3468.3,0.288331]
[1721630732783,2.88202,3469.8,3468.7,2.8829]
[1721630733117,2.88202,3469.8,3467.9,2.88352]
[1721630733118,0.55,3469.7,3468.5,2.88308]
[1721630733406,0.55,3469.7,3467.2,2.8841]
[1721630733407,2.4399,3469.2,3468.1,2.88341]
[1721630733608,0.55,3469.1,3468.3,2.88321]
[1721630733793,0.55,3469.1,3468.4,2.88314]
[1721630733995,0.55,3469.1,3468.5,2.88307]
[1721630734187,2.4399,3469.2,3468.7,2.88286]
[1721630734528,2.4399,3469.2,3468.8,2.88283]
[1721630735012,2.4399,3469.2,3468.6,2.883]
[1721630735315,2.4399,3469.2,3468.4,2.88316]
[1721630735720,2.4399,3469.2,3468.2,2.88333]
[1721630735721,3.43259,3469.1,3468.2,2.88332]
[1721630735916,0.587249,3469.0,3468.2,2.88332]
[1721630736448,0.587249,3469.0,3468.1,2.88339]
[1721630736449,3.469939,3469.0,3468.1,2.88339]
[1721630736606,0.587249,3469.0,3468.0,2.88349]
[1721630736810,0.587249,3469.0,3468.3,2.88325]
[1721630736811,0.727249,3469.0,3468.3,2.88325]
[1721630737047,0.14,3469.0,3468.4,0.05766216]
[1721630737345,0.14,3469.0,3468.3,2.8832]
[1721630737561,0.14,3469.0,3468.6,2.88299]
[1721630738043,0.14,3469.0,3468.9,2.88275]
[1721630738351,0.14,3469.0,3468.9,8.70589639]
[1721630738645,0.14,3469.0,3468.9,13.04118164]
[1721630739874,0.14,3469.0,3468.9,15.92393164]
[1721630740163,1e-05,3469.0,3468.9,10.15843164]
[1721630740325,1e-05,3469.0,3468.9,7.15843164]
[1721630740857,1e-05,3469.0,3468.2,2.3405]
[1721630740858,1e-05,3469.0,3468.8,2.88276]
[1721630741021,1e-05,3469.0,3467.7,5.32334]
[1721630741022,1e-05,3469.0,3468.9,2.88275]
[1721630741828,1e-05,3469.0,3468.9,5.7655]
[1721630743095,1e-05,3469.0,3468.9,2.88275]
[1721630744564,1e-05,3469.0,3468.7,2.88291]
[1721630744730,1e-05,3469.0,3468.5,2.88307]
[1721630745042,1e-05,3469.0,3468.5,3.459702]
[1721630745226,2.88242,3469.3,3468.3,2.88325]
[1721630745426,2.88242,3469.3,3468.1,2.88341]
[1721630745427,2.88242,3469.3,3468.4,2.88315]
[1721630746026,2.88235,3469.4,3468.2,2.88329]
[1721630746228,10.36199,3469.9,3467.9,2.88358]
[1721630746229,2.2642,3469.0,3467.9,2.88358]
[1721630746481,5.14688,3469.0,3468.1,2.88336]
[1721630746633,2.88276,3468.9,3468.0,2.88349]
[1721630746846,2.2642,3469.0,3468.1,2.88342]
[1721630747169,5.14688,3469.0,3468.1,2.88342]
[1721630748130,2.88278,3468.9,3467.9,2.88358]
[1721630748568,2.88278,3468.9,3468.0,2.88347]
[1721630749529,2.88284,3468.8,3467.9,2.88357]
[1721630749889,2.88292,3468.7,3467.8,2.88364]
[1721630750369,2.88292,3468.7,3467.6,2.88383]
[1721630750370,2.88276,3468.9,3467.9,5.7671]
[1721630750708,5.14688,3469.0,3468.0,2.88344]
[1721630750883,5.14688,3469.0,3468.1,2.88337]
[1721630751089,2.2642,3469.0,3468.2,0.05766385]
[1721630751296,7.48,3469.4,3468.6,2.88296]
[1721630751610,7.48,3469.4,3467.7,3.0576518]
[1721630751611,2.88245,3469.3,3468.4,2.88317]
[1721630751814,7.48,3469.4,3468.5,2.88308]
[1721630751965,7.48,3469.4,3468.4,0.576649]
[1721630752161,2.3071,3469.5,3469.2,2.8825]
[1721630752557,2.3071,3469.5,3468.2,0.34624669]
[1721630752558,9.9679,3470.0,3469.3,2.88234]
[1721630752986,9.9679,3470.0,3468.4,2.381]
[1721630752987,9.9679,3470.0,3469.4,2.88232]
[1721630753201,9.9679,3470.0,3469.6,2.88216]
[1721630754078,9.9679,3470.0,3469.7,2.88207]
[1721630754561,9.9679,3470.0,3469.5,2.88222]
[1721630755205,9.9679,3470.0,3469.3,2.8824]
[1721630755376,9.9679,3470.0,3469.3,3.203547]
[1721630755902,2.4879,3470.0,3469.3,3.203547]
[1721630756109,2.4879,3470.0,3469.3,3.203557]
[1721630756273,2.4879,3470.0,3469.6,2.88217]
[1721630757600,2.4879,3470.0,3469.4,2.8823]
[1721630757907,2.4879,3470.0,3469.4,2.88233]
[1721630758087,2.4879,3470.0,3469.5,2.88224]
[1721630758409,2.4879,3470.0,3469.4,0.6086067]
[1721630758903,2.4879,3470.0,3469.3,2.88242]
[1721630759201,2.4879,3470.0,3469.6,2.88217]
[1721630759817,2.2939,3470.5,3468.9,0.05763992]
[1721630760119,2.2939,3470.5,3470.3,2.88156]
[1721630760406,7.48,3471.1,3469.4,2.88232]
[1721630760407,2.88119,3470.8,3469.4,2.88232]
[1721630760617,2.2779,3471.0,3469.2,2.88249]
[1721630760822,2.2779,3471.0,3470.4,2.88143]
[1721630761115,2.2779,3471.0,3470.6,2.88134]
[1721630761426,0.88241738,3471.9,3469.3,3.0]
[1721630761427,7.48,3472.0,3471.3,2.8807]
[1721630761563,7.48,3472.0,3470.7,2.93883143]
[1721630761564,2.3893,3472.4,3471.1,2.88092]
[1721630761905,2.3893,3472.4,3471.8,2.88028]
[1721630762142,2.3893,3472.4,3471.2,0.34569884]
[1721630762143,2.3893,3472.4,3471.9,2.88018]
[1721630762347,2.3893,3472.4,3471.8,2.8803]
[1721630762487,2.3893,3472.4,3471.4,2.88067]
[1721630762852,2.3893,3472.4,3471.2,3.168932]
[1721630762853,2.88002,3472.2,3471.2,3.168932]
[1721630763130,5.26915,3472.4,3471.4,2.88065]
[1721630763332,2.3893,3472.4,3471.7,2.8804]
[1721630763699,2.3893,3472.4,3471.8,2.88034]
[1721630763915,7.48,3473.0,3471.8,2.88034]
[1721630764112,2.3298,3472.9,3471.9,2.88025]
[1721630764315,0.520917,3472.8,3471.6,2.88051]
[1721630764502,0.520917,3472.8,3471.9,2.88025]
[1721630764890,2.3298,3472.9,3472.2,2.88001]
[1721630765096,2.3298,3472.9,3471.2,0.05759678]
[1721630765097,2.3298,3472.9,3472.4,2.87984]
[1721630765323,2.3298,3472.9,3472.6,2.87968]
[1721630765633,7.48,3473.6,3472.6,2.87968]
[1721630765634,2.4923,3473.5,3472.6,2.87968]
[1721630765929,2.4923,3473.5,3472.2,2.88001]
[1721630766100,2.4923,3473.5,3472.0,2.88016]
[1721630766101,2.87923,3473.2,3472.0,2.88016]
[1721630766306,2.87936,3473.0,3472.0,2.88011]
[1721630767223,5.37129,3473.5,3471.4,2.93820679]
[1721630767534,2.87902,3473.4,3472.4,2.87981]
[1721630767829,2.4923,3473.5,3472.5,2.87976]
[1721630768020,0.537108,3473.4,3472.5,2.87976]
[1721630768433,2.4923,3473.5,3472.8,2.8795]
[1721630768640,2.4923,3473.5,3473.0,2.87935]
[1721630768807,0.45139493,3474.4,3472.2,2.87998]
[1721630768808,0.45139493,3474.4,3473.4,2.87894]
[1721630769127,0.45139493,3474.4,3472.4,3.305]
[1721630769128,2.87828,3474.3,3473.3,2.87909]
[1721630769293,2.4113,3474.9,3472.5,2.8797]
[1721630769294,2.4113,3474.9,3473.2,2.87918]
[1721630769492,2.4113,3474.9,3473.1,2.87927]
[1721630769493,8.32214,3474.9,3473.1,2.87927]
[1721630769729,2.87803,3474.6,3472.5,0.05757516]
[1721630769939,2.87786,3474.8,3472.8,2.87952]
[1721630770133,2.4113,3474.9,3472.8,2.87952]
[1721630770134,2.4113,3474.9,3473.8,2.87862]
[1721630770319,2.4113,3474.9,3472.9,0.057567]